bitfinex/quotes_BTCUSD_20251007
["timestamp","ask_amount","ask_price","bid_price","bid_amount"]
[1759845662071,0.75275766,123840.0,123830.0,0.32023977]
[1759845662335,0.75275766,123840.0,123830.0,0.31923977]
[1759845662336,1.6901522,123840.0,123830.0,0.31923977]
[1759845662554,1.6921522,123840.0,123830.0,0.32023977]
[1759845662777,1.6971522,123840.0,123830.0,0.32023977]
[1759845663011,1.6971522,123840.0,123830.0,0.00199977]
[1759845663507,1.40878048,123810.0,123800.0,0.3356]
[1759845663726,0.71026793,123810.0,123800.0,0.42116]
[1759845663936,1.62831057,123810.0,123800.0,0.42116]
[1759845664166,1.62531057,123810.0,123800.0,0.42116]
[1759845665341,1.65546247,123810.0,123800.0,0.42116]
[1759845665571,1.65546247,123810.0,123800.0,0.42216]
[1759845666312,1.65646247,123810.0,123800.0,0.23524]
[1759845666973,1.65646247,123810.0,123760.0,0.33608]
[1759845666974,0.16159004,123770.0,123760.0,0.33608]
[1759845667183,0.30188614,123770.0,123760.0,0.42]
[1759845667420,0.3320421,123770.0,123760.0,0.65424]
[1759845668284,0.33219226,123770.0,123760.0,0.65424]
[1759845669182,0.33219226,123770.0,123760.0,0.65524]
[1759845669604,0.33219226,123770.0,123760.0,0.65664076]
[1759845670250,0.38068226,123770.0,123760.0,0.65664076]
[1759845670458,0.33219226,123770.0,123760.0,0.65664076]
[1759845670676,1.6594317,123770.0,123760.0,0.65664076]
[1759845671345,1.6594317,123770.0,123760.0,0.00280076]
[1759845671576,1.6895836,123770.0,123760.0,0.31984076]
[1759845672005,1.6895836,123770.0,123760.0,0.32084076]
[1759845672006,1.6905836,123770.0,123760.0,0.32084076]
[1759845672229,1.6925836,123770.0,123760.0,0.32084076]
[1759845672443,0.78234096,123770.0,123760.0,0.31984076]
[1759845672696,1.6895836,123770.0,123760.0,0.31984076]
[1759845672897,1.6935836,123770.0,123760.0,0.31984076]
[1759845673331,1.6955836,123770.0,123760.0,0.32084076]
[1759845674944,1.6895836,123770.0,123760.0,0.31984076]
[1759845675202,1.6895836,123770.0,123760.0,0.32084076]
[1759845675380,1.6995836,123770.0,123760.0,0.32084076]
[1759845675661,1.6995836,123770.0,123760.0,0.00280076]
[1759845675662,1.7245836,123770.0,123760.0,0.00280076]
[1759845675902,1.7245836,123770.0,123760.0,0.23692076]
[1759845676149,0.79234096,123770.0,123760.0,0.23692076]
[1759845676409,0.71234416,123770.0,123760.0,0.23692076]
[1759845678074,0.71234416,123770.0,123760.0,0.00280076]
[1759845678268,1.6195868,123770.0,123760.0,0.32080076]
[1759845678559,1.6195868,123770.0,123760.0,0.00280076]
[1759845678763,1.6995836,123770.0,123760.0,0.23684076]
[1759845679425,0.79234096,123770.0,123760.0,0.23684076]
[1759845679683,0.71234416,123770.0,123760.0,0.23684076]
[1759845679899,0.68219226,123770.0,123760.0,0.23684076]
[1759845680394,0.34219226,123770.0,123760.0,0.23684076]
[1759845680610,0.68219226,123770.0,123760.0,0.23684076]
[1759845681910,0.2590702,123770.0,123760.0,0.23684076]
[1759845682119,0.2482702,123770.0,123760.0,0.23684076]
[1759845682316,0.2482702,123770.0,123760.0,0.00280076]
[1759845682560,0.2590702,123770.0,123760.0,0.65676076]
[1759845682813,0.38317698,123770.0,123760.0,0.11008076]
[1759845683026,1.63041962,123770.0,123760.0,0.32092076]
[1759845683237,1.66057152,123770.0,123760.0,0.32092076]
[1759845683491,1.66057152,123770.0,123760.0,0.00280076]
[1759845683731,1.66057152,123770.0,123760.0,0.32092076]
[1759845683974,0.50162922,123740.0,123730.0,0.33588]
[1759845684171,0.66864697,123740.0,123730.0,0.654]
[1759845684381,0.73840697,123740.0,123730.0,0.654]
[1759845685030,0.16165535,123720.0,123710.0,0.0004]
[1759845685251,0.16290939,123720.0,123710.0,1.15444]
[1759845685503,0.22631535,123720.0,123710.0,0.65444]
[1759845685716,0.22631535,123720.0,123710.0,0.0004]
[1759845685934,0.22631535,123720.0,123710.0,1.1544]
[1759845686151,0.22736537,123720.0,123710.0,0.6614]
[1759845686356,0.19007537,123720.0,123710.0,0.0074]
[1759845686573,0.24903537,123720.0,123710.0,0.65736]
[1759845687877,0.24803537,123720.0,123710.0,0.65436]
[1759845688113,0.24903537,123720.0,123710.0,0.66036]
[1759845688319,0.24903537,123720.0,123710.0,0.65636]
[1759845688528,0.24903537,123720.0,123710.0,0.0044]
[1759845688756,0.38053855,123720.0,123710.0,0.0024]
[1759845688983,1.38988179,123720.0,123710.0,0.3216]
[1759845689207,0.72153855,123720.0,123710.0,0.3216]
[1759845689477,1.38988179,123720.0,123710.0,0.3196]
[1759845689684,1.38888179,123720.0,123710.0,0.3206]
[1759845689898,1.38888179,123720.0,123710.0,0.0024]
[1759845690145,1.38888179,123720.0,123710.0,0.32164123]
[1759845690828,1.38888179,123720.0,123710.0,0.32160123]
[1759845691059,1.38988179,123720.0,123710.0,0.32060123]
[1759845691266,0.72353855,123720.0,123710.0,0.32060123]
[1759845691484,1.38888179,123720.0,123710.0,0.31960123]
[1759845691706,0.72053855,123720.0,123710.0,0.31960123]
[1759845691936,1.39588179,123720.0,123710.0,0.32060123]
[1759845692145,1.39188179,123720.0,123710.0,0.32060123]
[1759845692314,1.38888179,123720.0,123710.0,0.31960123]
[1759845692549,1.39288179,123720.0,123710.0,0.31960123]
[1759845692755,1.39588179,123720.0,123710.0,0.32060123]
[1759845693112,1.42603369,123720.0,123710.0,0.00240123]
[1759845693324,1.42603369,123720.0,123710.0,0.23648123]
[1759845693531,2.09437693,123720.0,123710.0,0.29708123]
[1759845693749,1.42603369,123720.0,123710.0,0.29708123]
[1759845694150,1.42603369,123720.0,123710.0,0.00240123]
[1759845694394,2.09437693,123720.0,123710.0,0.09108123]
[1759845694920,0.75769045,123720.0,123710.0,0.09108123]
[1759845695125,0.32735743,123720.0,123710.0,0.09108123]
[1759845695330,0.03542002,123720.0,123710.0,0.10819123]
[1759845695488,0.23402941,123720.0,123710.0,0.00240123]
[1759845695731,0.08104002,123720.0,123710.0,0.23664123]
[1759845695924,0.19607537,123720.0,123710.0,0.67375123]
[1759845696735,0.23177537,123720.0,123710.0,0.00240123]
[1759845696907,0.23177537,123720.0,123710.0,0.65656123]
[1759845696908,0.24269537,123720.0,123710.0,0.65656123]
[1759845697719,0.24269537,123720.0,123710.0,0.00240123]
[1759845697922,0.24269537,123720.0,123710.0,0.45384123]
[1759845698895,0.03572002,123720.0,123710.0,0.47152123]
[1759845699107,0.19962941,123720.0,123710.0,0.45384123]
[1759845699318,0.22443537,123720.0,123710.0,0.45384123]
[1759845699846,0.23542537,123720.0,123710.0,0.45384123]
[1759845700188,0.24546537,123720.0,123710.0,0.23648123]
[1759845700401,0.38030822,123720.0,123710.0,0.65640123]
[1759845701718,1.38865146,123720.0,123710.0,0.08640123]
[1759845701923,1.38865146,123720.0,123710.0,0.32032123]
[1759845702364,0.67959743,123720.0,123710.0,0.32032123]
[1759845702805,0.65854743,123720.0,123710.0,0.32032123]
[1759845703012,0.66858743,123720.0,123710.0,0.32032123]
[1759845703221,0.66858743,123720.0,123710.0,0.00240123]
[1759845703438,1.34794067,123720.0,123710.0,0.00240123]
[1759845703643,1.42793747,123720.0,123710.0,0.09208123]
[1759845704547,0.75959423,123720.0,123710.0,0.09208123]
[1759845704792,1.42793747,123720.0,123710.0,0.09208123]
[1759845705295,0.75959423,123720.0,123710.0,0.09208123]
[1759845705477,1.42793747,123720.0,123710.0,0.09208123]
[1759845707035,0.07377002,123720.0,123710.0,0.09208123]
[1759845707255,0.00705002,123720.0,123710.0,0.10976123]
[1759845707455,0.00705002,123720.0,123710.0,0.13986807]
[1759845707710,0.00705002,123720.0,123710.0,0.15079807]
[1759845708311,0.00705002,123720.0,123710.0,1.02386123]
[1759845708548,0.00705002,123720.0,123710.0,1.03479123]
[1759845709448,0.00705002,123720.0,123710.0,1.03475123]
[1759845709698,0.00705002,123720.0,123710.0,1.12088329]
[1759845710776,0.00705002,123720.0,123710.0,0.13108329]
[1759845711031,0.00705002,123720.0,123710.0,1.61783329]
[1759845711278,0.00705002,123720.0,123710.0,1.11783329]
[1759845712181,0.00705002,123720.0,123710.0,0.03402123]
[1759845712439,0.00705002,123720.0,123710.0,1.50976123]
[1759845712685,0.00705002,123720.0,123710.0,1.12076329]
[1759845712925,0.00705002,123720.0,123710.0,1.39176529]
[1759845713822,0.00305002,123720.0,123710.0,1.39176529]
[1759845714042,0.00305002,123720.0,123710.0,1.39376529]
[1759845714457,5.002e-05,123720.0,123710.0,1.39276529]
[1759845714655,0.00105002,123720.0,123710.0,1.39376529]
[1759845714877,0.00105002,123720.0,123710.0,0.40408529]
[1759845715089,0.00105002,123720.0,123710.0,1.39059529]
[1759845715514,0.00105002,123720.0,123710.0,1.39360529]
[1759845715729,0.00105002,123720.0,123710.0,0.80485329]
[1759845715948,0.00105002,123720.0,123710.0,1.22477329]
[1759845716267,0.00105002,123720.0,123710.0,1.23570329]
[1759845717113,0.00105002,123720.0,123710.0,1.23816329]
[1759845718116,0.00105002,123720.0,123710.0,1.7699836]
[1759845718640,0.1696836,123760.0,123720.0,0.3701519]
[1759845718805,0.16983325,123760.0,123750.0,0.10164]
[1759845719211,0.16983325,123760.0,123750.0,0.33528]
[1759845719439,0.16983325,123760.0,123740.0,0.33596]
[1759845719440,0.16161843,123750.0,123740.0,0.33596]
[1759845719663,0.17962843,123750.0,123720.0,0.348]
[1759845719945,0.23495923,123750.0,123740.0,0.41992]
[1759845720161,0.24584923,123750.0,123740.0,0.41992]
[1759845720601,0.16163396,123740.0,123720.0,0.33696]
[1759845720817,0.16163396,123740.0,123730.0,0.65356]
[1759845721063,0.16164236,123730.0,123710.0,0.0138]
[1759845721286,0.23497542,123740.0,123720.0,0.91992]
[1759845721513,0.16969923,123750.0,123730.0,0.03285422]
[1759845721735,0.17269923,123750.0,123740.0,0.23464]
[1759845721939,0.21776923,123750.0,123740.0,0.001]
[1759845722106,0.25960923,123750.0,123740.0,0.001]
[1759845722380,0.25960923,123750.0,123740.0,0.466]
[1759845722597,0.34273129,123750.0,123740.0,0.001]
[1759845722728,0.34273129,123750.0,123740.0,0.44784]
[1759845722729,0.76272809,123750.0,123740.0,0.44784]
[1759845723111,0.66108129,123750.0,123740.0,0.44784]
[1759845723320,0.56482923,123750.0,123740.0,0.44684]
[1759845723502,0.57495923,123750.0,123740.0,0.44684]
[1759845723742,0.57695923,123750.0,123740.0,0.44684]
[1759845723946,0.21476923,123750.0,123740.0,0.44684]
[1759845724344,0.19170923,123750.0,123740.0,0.46353]
[1759845724563,0.17369923,123750.0,123740.0,0.46353]
[1759845724774,0.24195923,123750.0,123740.0,0.00140039]
[1759845724983,0.25284923,123750.0,123740.0,0.65496039]
[1759845725186,0.24195923,123750.0,123740.0,0.65496039]
[1759845725510,0.24195923,123750.0,123740.0,0.00140039]
[1759845725727,0.26360923,123750.0,123740.0,0.00140039]
[1759845726148,0.68673129,123750.0,123740.0,0.45224039]
[1759845726381,0.68673129,123750.0,123740.0,0.00140039]
[1759845726597,0.68673129,123750.0,123740.0,0.65496039]
[1759845726871,0.66508129,123750.0,123740.0,0.65496039]
[1759845727082,0.68673129,123750.0,123740.0,0.57100039]
[1759845727298,0.66508129,123750.0,123740.0,0.65496039]
[1759845727520,0.67597129,123750.0,123740.0,0.65496039]
[1759845727958,0.66508129,123750.0,123740.0,0.65496039]
[1759845728190,0.57182923,123750.0,123740.0,0.65496039]
[1759845728410,0.19470923,123750.0,123740.0,0.67165039]
[1759845728669,0.17669923,123750.0,123740.0,0.67165039]
[1759845729346,0.19470923,123750.0,123740.0,0.67165039]
[1759845730259,0.17669923,123750.0,123740.0,0.68505039]
[1759845730480,0.17669923,123750.0,123740.0,0.67165039]
[1759845730945,0.007,123750.0,123740.0,0.68505039]
[1759845731666,0.007,123750.0,123740.0,0.76817245]
[1759845731881,0.007,123750.0,123740.0,0.11461245]
[1759845732130,0.007,123750.0,123740.0,1.12347826]
[1759845732349,0.004,123750.0,123740.0,1.12247826]
[1759845732827,0.00014965,123760.0,123740.0,1.12247826]
[1759845733074,0.00014965,123760.0,123740.0,1.10867787]
[1759845733279,0.00014965,123760.0,123750.0,0.09672224]
[1759845733502,0.00014965,123760.0,123750.0,1.86726737]
[1759845733738,0.00014965,123760.0,123750.0,2.05956382]
[1759845733962,0.00014965,123760.0,123750.0,2.06994382]
[1759845734681,0.00014965,123760.0,123750.0,2.07794382]
[1759845735116,0.00014965,123760.0,123750.0,1.90594766]
[1759845735326,0.00014965,123760.0,123750.0,1.47332966]
[1759845735763,0.00014965,123760.0,123750.0,1.42820776]
[1759845735981,0.00014965,123760.0,123750.0,2.19506776]
[1759845736203,0.12173996,123770.0,123750.0,0.60206476]
[1759845736426,0.23501016,123790.0,123760.0,0.34712031]
[1759845736674,0.50963027,123800.0,123760.0,0.42554331]
[1759845736901,0.17960004,123770.0,123760.0,0.01146125]
[1759845737116,0.1616031,123760.0,123750.0,0.00370137]
[1759845737356,0.17960004,123770.0,123760.0,0.33588]
[1759845737576,0.18966004,123770.0,123760.0,0.33588]
[1759845738034,0.23774004,123770.0,123760.0,0.33588]
[1759845738249,0.23774004,123770.0,123750.0,0.00070137]
[1759845738250,0.1616031,123760.0,123750.0,0.00070137]
[1759845738460,0.1616031,123760.0,123750.0,0.65414137]
[1759845738461,0.1987231,123760.0,123750.0,0.65414137]
[1759845738668,0.2278631,123760.0,123750.0,0.65410137]
[1759845739138,0.2177331,123760.0,123750.0,0.65410137]
[1759845739360,0.2167331,123760.0,123750.0,0.65410137]
[1759845739532,0.1616031,123760.0,123750.0,0.67079137]
[1759845739751,0.1636031,123760.0,123750.0,0.70171014]
[1759845739954,0.1636031,123760.0,123750.0,0.67079137]
[1759845740111,0.1636031,123760.0,123750.0,0.01739137]
[1759845740313,0.1636031,123760.0,123750.0,0.67079137]
[1759845740524,0.1646031,123760.0,123750.0,0.67079137]
[1759845740758,0.1826131,123760.0,123750.0,0.67079137]
[1759845740979,0.2397531,123760.0,123750.0,0.65410137]
[1759845741199,0.2288631,123760.0,123750.0,0.65410137]
[1759845741440,0.1836131,123760.0,123750.0,0.65510137]
[1759845741877,0.1836131,123760.0,123750.0,0.00170137]
[1759845742112,0.1836131,123760.0,123750.0,0.67179137]
[1759845742307,0.02201,123760.0,123750.0,0.67179137]
[1759845742671,0.1656031,123760.0,123750.0,0.68519137]
[1759845743304,0.004,123760.0,123750.0,0.68519137]
[1759845743508,0.004,123760.0,123750.0,0.76831343]
[1759845744590,0.1656031,123760.0,123750.0,0.10151343]
[1759845744800,0.1836131,123760.0,123750.0,0.16379137]
[1759845745009,0.1836131,123760.0,123750.0,0.01839137]
[1759845745234,0.1836131,123760.0,123750.0,0.65510137]
[1759845746117,0.2417531,123760.0,123750.0,0.33758137]
[1759845746319,0.2417531,123760.0,123750.0,0.65510137]
[1759845746555,0.2417531,123760.0,123750.0,0.00170137]
[1759845746772,0.2525131,123760.0,123750.0,0.45710137]
[1759845747212,0.2525131,123760.0,123750.0,0.00170137]
[1759845747215,1.3439784,123760.0,123750.0,0.42154137]
[1759845747412,1.3741303,123760.0,123750.0,0.42154137]
[1759845747611,1.3741303,123760.0,123750.0,0.65510137]
[1759845748167,1.3721303,123760.0,123750.0,0.65410137]
[1759845748425,1.3751303,123760.0,123750.0,0.65510137]
[1759845748639,1.4631271,123760.0,123750.0,0.31922137]
[1759845748859,0.16165535,123720.0,123710.0,0.0004]
[1759845749097,0.16165535,123720.0,123710.0,0.65394965]
[1759845749318,0.24856535,123720.0,123710.0,0.65394965]
[1759845749537,0.24856535,123720.0,123710.0,0.65529024]
[1759845750006,0.16976773,123700.0,123660.0,0.53817968]
[1759845750237,0.16169461,123690.0,123670.0,1.13148606]
[1759845750462,0.20129461,123690.0,123680.0,0.08396]
[1759845750697,0.21756461,123690.0,123680.0,0.08396]
[1759845750935,0.20809455,123690.0,123680.0,0.08396]
[1759845751159,0.19796455,123690.0,123680.0,0.31752]
[1759845751376,0.21856455,123690.0,123680.0,0.31752]
[1759845751627,0.24451455,123690.0,123680.0,0.31752]
[1759845751897,0.05687,123690.0,123680.0,0.31752]
[1759845752119,0.0464,123690.0,123680.0,0.31752]
[1759845752306,0.21856455,123690.0,123680.0,0.31752]
[1759845752794,0.21856455,123690.0,123680.0,0.32452]
[1759845753014,0.21631773,123700.0,123680.0,0.32452]
[1759845753228,0.20909455,123690.0,123680.0,0.32652]
[1759845753447,0.24551455,123690.0,123680.0,0.32652]
[1759845753954,0.24451455,123690.0,123680.0,0.32452]
[1759845754442,0.24451455,123690.0,123680.0,0.009]
[1759845754443,0.32763661,123690.0,123680.0,0.009]
[1759845754663,0.32763661,123690.0,123680.0,0.66252]
[1759845754887,0.32763661,123690.0,123680.0,0.66052]
[1759845755107,0.32863661,123690.0,123680.0,0.66252]
[1759845755329,0.66863661,123690.0,123680.0,0.66252]
[1759845755788,1.57883688,123690.0,123680.0,0.66252]
[1759845756041,0.66863661,123690.0,123680.0,0.663121]
[1759845756267,0.69878851,123690.0,123680.0,0.663121]
[1759845756518,1.68898558,123690.0,123680.0,0.663121]
[1759845756748,0.77778531,123690.0,123680.0,0.661121]
[1759845757184,1.68898558,123690.0,123680.0,0.663121]
[1759845757407,1.74333963,123690.0,123680.0,0.327161]
[1759845757620,1.71298558,123690.0,123680.0,0.325161]
[1759845757832,1.71298558,123690.0,123680.0,0.241201]
[1759845758060,1.81598558,123690.0,123680.0,0.242201]
[1759845758282,0.83513936,123690.0,123680.0,0.235201]
[1759845758505,1.82842435,123690.0,123680.0,0.008]
[1759845758773,1.82842435,123690.0,123650.0,0.33596]
[1759845758774,0.5318726,123670.0,123650.0,0.33596]
[1759845759003,0.16987938,123630.0,123620.0,0.336]
[1759845759221,0.25413938,123630.0,123620.0,0.42005002]
[1759845759903,0.25413938,123630.0,123620.0,0.65369002]
[1759845760127,0.24603303,123630.0,123620.0,0.65369002]
[1759845760575,0.08426,123630.0,123620.0,0.65369002]
[1759845760802,0.24603303,123630.0,123620.0,0.65369002]
[1759845761030,0.24703303,123630.0,123620.0,0.65569002]
[1759845761429,0.22136303,123630.0,123620.0,0.65569002]
[1759845761643,0.22136303,123630.0,123620.0,0.65869002]
[1759845761848,0.24703303,123630.0,123620.0,0.65869002]
[1759845763378,0.08526,123630.0,123620.0,0.65869002]
[1759845763627,0.05959,123630.0,123620.0,0.65869002]
[1759845763827,0.001,123630.0,123620.0,0.65869002]
[1759845765786,0.001,123630.0,123620.0,0.74181208]
[1759845766650,0.001,123630.0,123620.0,2.66867609]
[1759845767181,0.001,123630.0,123620.0,1.85324998]
[1759845767584,0.001,123630.0,123620.0,0.71703508]
[1759845767857,0.001,123630.0,123620.0,1.59479208]
[1759845768076,0.25505208,123650.0,123620.0,0.59971208]
[1759845768293,0.30158208,123650.0,123630.0,0.156151]
[1759845768515,0.30158208,123650.0,123640.0,0.7338]
[1759845768728,0.35605382,123650.0,123640.0,0.654]
[1759845768959,0.36579382,123650.0,123640.0,0.654]
[1759845769180,0.30042633,123650.0,123640.0,0.654]
[1759845769404,0.27475633,123650.0,123640.0,0.654]
[1759845769633,0.27575633,123650.0,123640.0,0.654]
[1759845769849,0.001,123650.0,123640.0,0.654]
[1759845770084,0.001,123650.0,123640.0,0.6548017]
[1759845770728,0.004,123650.0,123640.0,0.0018017]
[1759845770972,0.16574686,123650.0,123640.0,0.9918817]
[1759845771188,0.003,123650.0,123640.0,0.9918817]
[1759845771465,0.008,123650.0,123640.0,0.9918817]
[1759845771863,0.008,123650.0,123640.0,1.07500376]
[1759845772072,0.008,123650.0,123640.0,0.08492376]
[1759845772279,0.008,123650.0,123640.0,1.07500376]
[1759845773322,0.008,123650.0,123640.0,0.08492376]
[1759845773538,0.008,123650.0,123640.0,1.07500376]
[1759845773746,0.008,123650.0,123640.0,0.4202]
[1759845774195,0.008,123650.0,123620.0,0.19193598]
[1759845774414,0.008,123650.0,123640.0,0.4202]
[1759845774858,0.008,123650.0,123640.0,0.65392]
[1759845775728,0.005,123650.0,123640.0,0.65392]
[1759845775946,0.006,123650.0,123640.0,2.633728]
[1759845776163,0.006,123650.0,123640.0,2.6638799]
[1759845776379,0.005,123650.0,123640.0,2.6638799]
[1759845776827,0.008,123650.0,123640.0,2.6648799]
[1759845777037,0.008,123650.0,123640.0,2.0109599]
[1759845777265,0.008,123650.0,123640.0,2.6648799]
[1759845777703,0.008,123650.0,123640.0,2.0109599]
[1759845777882,0.008,123650.0,123640.0,2.75523996]
[1759845778212,0.008,123650.0,123640.0,2.83927996]
[1759845778454,0.13779373,123680.0,123640.0,2.83927996]
[1759845778678,0.18965718,123670.0,123640.0,0.45427396]
[1759845778900,0.30155467,123670.0,123650.0,0.98996]
[1759845779124,0.04071,123670.0,123650.0,0.98996]
[1759845779350,0.22091579,123680.0,123650.0,0.98996]
[1759845779351,0.16979408,123680.0,123650.0,0.98996]
[1759845779573,0.17479408,123680.0,123640.0,0.341]
[1759845779804,0.20667408,123680.0,123660.0,0.75624]
[1759845780014,0.16980673,123670.0,123640.0,0.42312206]
[1759845780243,0.25599673,123670.0,123660.0,0.084]
[1759845780496,0.16173759,123660.0,123640.0,0.08412206]
[1759845780736,0.18272759,123660.0,123650.0,1.15388]
[1759845780949,0.18272759,123660.0,123640.0,0.001]
[1759845780950,0.16174686,123650.0,123640.0,0.001]
[1759845781166,0.17263686,123650.0,123640.0,0.001]
[1759845781392,0.24793686,123650.0,123640.0,0.001]
[1759845781611,0.24793686,123650.0,123640.0,0.42012]
[1759845781836,0.24793686,123650.0,123640.0,0.59252]
[1759845782658,0.24893686,123650.0,123640.0,0.59252]
[1759845782866,0.24993686,123650.0,123640.0,0.59352]
[1759845783540,0.002,123650.0,123640.0,0.59352]
[1759845784032,0.24993686,123650.0,123640.0,0.001]
[1759845784250,0.29165901,123650.0,123640.0,0.001]
[1759845784479,0.29165901,123650.0,123640.0,0.57732]
[1759845784480,0.25047692,123650.0,123640.0,0.57732]
[1759845785001,0.08873006,123650.0,123640.0,0.57732]
[1759845785258,0.00254006,123650.0,123640.0,0.57732]
[1759845785509,0.18133692,123650.0,123640.0,0.001]
[1759845785773,0.01959006,123650.0,123640.0,0.99108]
[1759845786028,0.00254006,123650.0,123640.0,0.99108]
[1759845786280,0.00254006,123650.0,123640.0,2.21624906]
[1759845786491,0.00254006,123650.0,123640.0,2.4081609]
[1759845787659,0.00254006,123650.0,123640.0,2.24648096]
[1759845788149,0.00254006,123650.0,123640.0,2.4082409]
[1759845788584,0.00254006,123650.0,123640.0,1.4180809]
[1759845788804,0.00254006,123650.0,123640.0,1.01113506]
[1759845789060,0.00254006,123650.0,123640.0,1.56096406]
[1759845789495,0.00254006,123650.0,123640.0,0.57100406]
[1759845789718,0.00254006,123650.0,123640.0,0.23484]
[1759845789976,0.03046006,123650.0,123640.0,0.001]
[1759845790200,0.20232692,123650.0,123640.0,0.99104]
[1759845790454,0.21321692,123650.0,123640.0,0.61668]
[1759845790676,0.25047692,123650.0,123640.0,0.33712]
[1759845790895,0.25047692,123650.0,123640.0,0.65496]
[1759845791785,0.25047692,123650.0,123640.0,0.655]
[1759845792647,0.24947692,123650.0,123640.0,0.654]
[1759845792926,0.16175994,123640.0,123630.0,0.00020047]
[1759845793188,0.17201994,123640.0,123630.0,0.00020047]
[1759845793408,0.17201994,123640.0,123630.0,0.42040047]
[1759845793409,0.331072,123640.0,123630.0,0.42040047]
[1759845793622,0.331072,123640.0,123630.0,0.65420047]
[1759845794494,0.333072,123640.0,123630.0,0.00120047]
[1759845794700,1.58327227,123640.0,123630.0,0.44084047]
[1759845794920,0.673072,123640.0,123630.0,0.44084047]
[1759845795565,0.333072,123640.0,123630.0,0.44084047]
[1759845795785,0.331072,123640.0,123630.0,0.43984047]
[1759845795999,0.337072,123640.0,123630.0,0.43984047]
[1759845796438,0.342072,123640.0,123630.0,0.44084047]
[1759845796687,0.73200789,123640.0,123630.0,0.33736047]
[1759845796883,0.73200789,123640.0,123630.0,0.65516047]
[1759845797083,0.682072,123640.0,123630.0,0.65516047]
[1759845797343,1.59227227,123640.0,123630.0,0.65516047]
[1759845797597,1.59227227,123640.0,123600.0,0.0004]
[1759845797598,0.5017992,123610.0,123600.0,0.0004]
[1759845797823,0.5017992,123610.0,123600.0,0.3182]
[1759845797824,1.49512153,123610.0,123600.0,0.3182]
[1759845798044,0.67111126,123610.0,123600.0,0.3182]
[1759845798714,0.67111126,123610.0,123600.0,0.0004]
[1759845798930,1.58146099,123610.0,123600.0,0.31864]
[1759845799136,0.67126072,123610.0,123600.0,0.31864]
[1759845799347,0.67326072,123610.0,123600.0,0.31864]
[1759845799565,1.58346099,123610.0,123600.0,0.31864]
[1759845799785,1.58646099,123610.0,123600.0,0.31964]
[1759845800003,0.67626072,123610.0,123600.0,0.31964]
[1759845800672,0.33626072,123610.0,123600.0,0.31964]
[1759845801354,0.25007072,123610.0,123600.0,0.31964]
[1759845801587,0.29943072,123610.0,123600.0,0.31964]
[1759845802071,0.21630866,123610.0,123600.0,0.31964]
[1759845802257,0.00514946,123610.0,123600.0,0.31964]
[1759845802552,0.16694866,123610.0,123600.0,0.31964]
[1759845802982,0.00514946,123610.0,123600.0,0.31964]
[1759845803204,0.16694866,123610.0,123600.0,0.31964]
[1759845803436,0.16694866,123610.0,123600.0,0.32024159]
[1759845803674,0.25358866,123610.0,123600.0,0.65636159]
[1759845803897,0.22718866,123610.0,123600.0,0.65636159]
[1759845804571,0.19479866,123610.0,123600.0,0.65636159]
[1759845804795,0.21630866,123610.0,123600.0,0.65636159]
[1759845805012,0.21630866,123610.0,123600.0,0.00200159]
[1759845805276,0.25358866,123610.0,123600.0,0.00200159]
[1759845805501,0.25358866,123610.0,123600.0,0.46168159]
[1759845805929,0.00514946,123610.0,123600.0,0.46168159]
[1759845806154,0.19479866,123610.0,123600.0,0.46168159]
[1759845806814,0.03299946,123610.0,123600.0,0.46168159]
[1759845807024,0.16694866,123610.0,123600.0,0.46168159]
[1759845807251,0.00514946,123610.0,123600.0,0.46168159]
[1759845808145,0.00514946,123610.0,123600.0,0.00200159]
[1759845808374,0.01588946,123610.0,123600.0,0.99272159]
[1759845808597,0.17768866,123610.0,123600.0,0.41476159]
[1759845808823,0.19479866,123610.0,123600.0,0.49880159]
[1759845809047,0.19479866,123610.0,123600.0,0.00200159]
[1759845809316,0.33671072,123610.0,123600.0,0.65636159]
[1759845809790,0.33671072,123610.0,123600.0,0.33828159]
[1759845810007,0.33671072,123610.0,123600.0,0.65644159]
[1759845810668,0.41670752,123610.0,123600.0,0.65644159]
[1759845811318,1.42633085,123610.0,123600.0,0.00200159]
[1759845811532,1.42633085,123610.0,123600.0,0.42232159]
[1759845811761,1.42633085,123610.0,123600.0,0.43152159]
[1759845812410,0.75670752,123610.0,123600.0,0.43152159]
[1759845812620,0.67671072,123610.0,123600.0,0.43152159]
[1759845814207,1.34633405,123610.0,123600.0,0.43152159]
[1759845814614,0.67671072,123610.0,123600.0,0.00200159]
[1759845814815,0.70686262,123610.0,123600.0,0.32008159]
[1759845815017,1.45648275,123610.0,123600.0,0.32008159]
[1759845815456,0.78685942,123610.0,123600.0,0.32008159]
[1759845815659,0.75670752,123610.0,123600.0,0.32008159]
[1759845815935,1.42633085,123610.0,123600.0,0.32008159]
[1759845816329,0.75670752,123610.0,123600.0,0.32008159]
[1759845817004,1.42633085,123610.0,123600.0,0.32008159]
[1759845817661,0.75670752,123610.0,123600.0,0.32008159]
[1759845817867,0.67671072,123610.0,123600.0,0.32008159]
[1759845818454,1.34633405,123610.0,123600.0,0.32008159]
[1759845819443,1.34633405,123610.0,123600.0,0.00200159]
[1759845819444,1.58633405,123610.0,123600.0,0.00200159]
[1759845819650,1.58633405,123610.0,123600.0,0.09628159]
[1759845819869,0.99670752,123610.0,123600.0,0.09628159]
[1759845820072,1.66633085,123610.0,123600.0,0.09628159]
[1759845820891,1.66633085,123610.0,123600.0,0.23592159]
[1759845821094,1.66633085,123610.0,123600.0,0.08608159]
[1759845821362,0.99670752,123610.0,123600.0,0.30128159]
[1759845821544,1.66633085,123610.0,123600.0,0.08608159]
[1759845821760,1.66633085,123610.0,123590.0,0.002]
[1759845821761,0.50181229,123600.0,123590.0,0.002]
[1759845821970,1.36470638,123600.0,123590.0,0.10056]
[1759845822199,1.40627638,123600.0,123590.0,0.10056]
[1759845822383,1.44715638,123600.0,123590.0,0.10076057]
[1759845822815,0.77753305,123600.0,123590.0,0.10076057]
[1759845823028,1.44715638,123600.0,123590.0,0.10076057]
[1759845823245,0.16182539,123590.0,123580.0,0.08448]
[1759845823490,0.50183848,123580.0,123570.0,0.08448]
[1759845823703,1.27141387,123580.0,123570.0,0.31836]
[1759845823927,0.67535434,123580.0,123570.0,0.31836]
[1759845824155,1.37512957,123580.0,123570.0,1e-08]
[1759845824401,1.37512957,123580.0,123550.0,0.0004]
[1759845824402,0.50186468,123560.0,123550.0,0.08448]
[1759845824624,0.50186468,123560.0,123550.0,0.16972]
[1759845824625,1.9242334,123560.0,123550.0,0.16972]
[1759845824873,1.36420541,123560.0,123550.0,0.16972]
[1759845825149,1.47435411,123560.0,123550.0,0.23452]
[1759845825584,2.14412682,123560.0,123550.0,0.23452]